bitfinex/quotes_SOLUSD_20240826
["timestamp","ask_amount","ask_price","bid_price","bid_amount"]
[1724710132194,30.81041783,157.92,157.88,0.8097597]
[1724710132195,16.5837,157.94,157.88,0.8097597]
[1724710132412,6.3315,157.94,157.89,6.3334]
[1724710132710,16.5837,157.98,157.9,45.0]
[1724710132894,46.89281783,158.02,157.9,45.0]
[1724710133087,6.3295,157.99,157.9,45.0]
[1724710133489,6.3299,157.98,157.92,22.1617]
[1724710134424,6.3299,157.98,157.93,6.3319]
[1724710136528,6.3299,157.98,157.92,15.8298]
[1724710136529,7.47302109,157.97,157.92,22.162]
[1724710136727,6.3307,157.96,157.92,15.8298]
[1724710137029,30.81041783,157.98,157.89,21.5425]
[1724710137030,7.47382109,157.95,157.9,6.333]
[1724710137534,6.3316,157.94,157.89,15.8336]
[1724710137696,1.14272109,157.93,157.88,0.8097597]
[1724710138714,6.3323,157.92,157.88,0.8097597]
[1724710139035,1.14272109,157.91,157.88,0.8097597]
[1724710140526,6.3323,157.92,157.88,0.8097597]
[1724710141205,6.3335,157.89,157.88,0.8097597]
[1724710141410,7.47622109,157.89,157.88,0.8097597]
[1724710141611,27.47622109,157.89,157.88,0.8097597]
[1724710142520,6.3335,157.89,157.88,0.8097597]
[1724710142727,6.3331,157.9,157.88,0.8097597]
[1724710142915,6.3327,157.91,157.88,0.8097597]
[1724710143328,26.3331,157.9,157.88,0.8097597]
[1724710143510,20.0,157.9,157.88,0.8097597]
[1724710147931,6.332,157.93,157.88,0.8097597]
[1724710148514,43.24761783,157.92,157.88,0.8097597]
[1724710148712,37.14391783,157.89,157.88,0.8097597]
[1724710149232,57.14391783,157.89,157.88,0.8097597]
[1724710152135,26.3335,157.89,157.88,0.8097597]
[1724710152339,27.47622109,157.89,157.88,0.8097597]
[1724710154130,26.3335,157.89,157.88,0.8097597]
[1724710156826,6.3331,157.9,157.88,0.8097597]
[1724710158542,7.47622109,157.89,157.88,0.8097597]
[1724710158744,27.47622109,157.89,157.88,0.8097597]
[1724710159043,26.3335,157.89,157.88,0.8097597]
[1724710159451,44.93423251,157.9,157.88,0.8097597]
[1724710159657,6.3331,157.9,157.88,0.8097597]
[1724710161547,7.47622109,157.89,157.88,0.8097597]
[1724710161851,6.3335,157.89,157.88,0.8097597]
[1724710163428,6.3331,157.9,157.88,0.8097597]
[1724710167242,6.3335,157.89,157.88,0.8097597]
[1724710169862,6.3331,157.9,157.88,0.8097597]
[1724710177444,30.8659712,157.95,157.88,0.8097597]
[1724710177648,6.3323,157.92,157.88,0.8097597]
[1724710177868,6.3327,157.91,157.88,0.8097597]
[1724710178177,30.8659712,157.93,157.89,6.3331]
[1724710178475,37.1978712,157.93,157.88,7.1435597]
[1724710179194,15.8263,157.97,157.88,7.1435597]
[1724710179195,6.3315,157.94,157.89,6.3333]
[1724710181059,6.3319,157.93,157.89,6.3333]
[1724710181559,6.3329,157.91,157.88,0.8097597]
[1724710181768,1.14272109,157.9,157.88,0.8097597]
[1724710182650,6.3335,157.89,157.88,0.8097597]
[1724710186291,58.34219229,157.89,157.88,0.8097597]
[1724710190375,57.1994712,157.89,157.88,0.8097597]
[1724710191673,58.34219229,157.89,157.88,0.8097597]
[1724710194684,26.3335,157.89,157.88,0.8097597]
[1724710194980,20.0,157.89,157.88,0.8097597]
[1724710199063,26.3335,157.89,157.88,0.8097597]
[1724710200958,30.8659712,157.91,157.88,0.8097597]
[1724710201363,30.8659712,157.95,157.88,0.8097597]
[1724710201875,30.8659712,157.95,157.88,7.1435597]
[1724710201876,6.3322,157.93,157.88,7.1435597]
[1724710202072,7.47502109,157.92,157.88,0.8097597]
[1724710202685,6.3323,157.92,157.88,0.8097597]
[1724710205169,7.47502109,157.92,157.88,0.8097597]
[1724710205369,6.3323,157.92,157.88,0.8097597]
[1724710210184,6.3308,157.96,157.91,6.3323]
[1724710210698,6.3311,157.95,157.91,6.3323]
[1724710212295,6.3311,157.95,157.9,6.333]
[1724710212701,6.3299,157.98,157.94,6.3314]
[1724710213005,12.33964446,157.98,157.92,6.2433]
[1724710213834,6.3303,157.97,157.92,12.5755]
[1724710214680,6.3303,157.97,157.93,6.3318]
[1724710214882,6.33,157.98,157.94,6.3314]
[1724710216402,6.33,157.98,157.93,6.3318]
[1724710217082,5.27662286,158.03,157.92,6.2433]
[1724710217287,5.27662286,158.13,158.09,6.3253]
[1724710217506,6.3214,158.2,158.13,6.3238]
[1724710217722,6.3206,158.22,158.14,52.58791227]
[1724710217917,46.63917448,158.25,158.14,52.58791227]
[1724710217918,6.3197,158.24,158.15,1.26450351]
[1724710218088,30.84077448,158.27,158.15,1.26450351]
[1724710218426,30.84077448,158.25,158.16,15.8058]
[1724710219501,6.3199,158.23,158.16,22.1284]
[1724710220286,6.3194,158.25,158.18,6.3218]
[1724710220492,30.84077448,158.28,158.19,6.3213]
[1724710221121,6.3191,158.25,158.17,6.3219]
[1724710221294,6.3191,158.25,158.18,51.3218]
[1724710223204,20.0,158.24,158.18,51.3218]
[1724710224293,26.3195,158.24,158.18,51.3218]
[1724710225620,6.319,158.26,158.2,12.3748]
[1724710226125,30.84077448,158.26,158.2,6.0538]
[1724710226822,37.15977448,158.26,158.2,6.0538]
[1724710227809,16.5796,158.32,158.2,6.0538]
[1724710228120,6.3188,158.26,158.21,6.3203]
[1724710228923,6.3188,158.26,158.2,6.0538]
[1724710230094,6.3188,158.26,158.2,12.3748]
[1724710230513,30.84077448,158.26,158.2,6.0538]
[1724710230693,6.3199,158.23,158.2,6.0538]
[1724710232010,6.3204,158.22,158.2,6.0538]
[1724710232209,6.3211,158.2,158.16,21.8605]
[1724710235842,6.3219,158.18,158.16,6.0538]
[1724710237223,20.0,158.17,158.12,6.0695]
[1724710237552,6.3239,158.13,158.09,15.3598]
[1724710238509,37.16467448,158.13,158.09,15.3598]
[1724710239526,6.3239,158.13,158.09,15.3598]
[1724710243939,30.84077448,158.15,158.09,21.6852]
[1724710243940,6.3235,158.14,158.09,21.6852]
[1724710244142,20.0,158.17,158.1,1.26499367]
[1724710244751,6.3218,158.19,158.14,6.3234]
[1724710246229,30.84077448,158.18,158.11,15.8108]
[1724710246429,30.84077448,158.16,158.09,15.3598]
[1724710247552,6.3235,158.14,158.09,21.6852]
[1724710248660,30.84077448,158.12,158.08,6.0695]
[1724710249340,37.16517448,158.12,158.08,6.0695]
[1724710250921,30.84077448,158.14,158.08,6.0695]
[1724710251124,6.3235,158.14,158.09,6.3252]
[1724710251544,30.84077448,158.16,158.09,6.3251]
[1724710251741,30.84077448,158.14,158.09,6.3251]
[1724710252547,6.3239,158.13,158.09,6.3251]
[1724710257838,15.803,158.2,158.09,6.3251]
[1724710257839,30.84077448,158.18,158.1,15.812]
[1724710258037,6.3227,158.16,158.11,6.3243]
[1724710260362,6.3233,158.15,158.1,22.137]
[1724710260661,31.98349557,158.18,158.1,22.137]
[1724710260858,20.0,158.17,158.1,22.137]
[1724710261638,6.3235,158.14,158.1,22.137]
[1724710264766,15.7991,158.24,158.13,15.8089]
[1724710264974,6.3219,158.18,158.13,15.8089]
[1724710265564,6.3219,158.18,158.13,22.1327]
[1724710272045,18.62637409,158.18,158.13,22.1327]
[1724710274266,12.30447409,158.18,158.11,45.0]
[1724710274479,6.3236,158.14,158.09,32.4468]
[1724710274772,12.30447409,158.14,158.1,6.3248]
[1724710277082,12.30447409,158.12,158.09,16.6339]
[1724710277273,1.14272109,158.15,158.08,6.0695]
[1724710277274,18.62987409,158.1,158.08,6.0695]
[1724710277472,1.14272109,158.09,158.04,6.0421]
[1724710277778,12.30447409,158.08,158.04,6.0421]
[1724710278378,18.63037409,158.08,158.04,6.0421]
[1724710280055,6.3259,158.08,158.04,6.0421]
[1724710281680,37.12610146,158.09,158.04,12.3695]
[1724710282681,6.3255,158.09,158.04,12.3695]
[1724710283367,30.80060146,158.07,158.02,15.8199]
[1724710283690,7.46952109,158.06,158.02,15.8199]
[1724710284071,6.3268,158.06,158.02,15.8199]
[1724710284384,30.80060146,158.07,158.02,22.1482]
[1724710284593,30.80060146,158.07,158.03,6.3276]
[1724710284766,6.3263,158.07,158.02,22.1481]
[1724710284969,30.80060146,158.08,158.03,6.3277]
[1724710285177,6.3263,158.07,158.02,22.1481]
[1724710288916,6.326,158.08,158.02,15.8199]
[1724710289096,30.80060146,158.1,158.02,15.8199]
[1724710289097,6.3255,158.09,158.04,6.3273]
[1724710289474,6.3259,158.08,158.04,6.3273]
[1724710295677,6.3256,158.09,158.04,6.3273]
[1724710295987,6.3256,158.09,158.05,1.2652809]
[1724710296175,6.3256,158.09,158.05,46.2652809]
[1724710298004,30.80060146,158.13,158.06,6.3267]
[1724710298203,30.80060146,158.13,158.06,7.59181515]
[1724710298204,20.0,158.12,158.06,7.59181515]
[1724710298401,26.3244,158.12,158.07,6.3259]
[1724710298600,26.3244,158.12,158.08,45.0]
[1724710298981,6.3239,158.13,158.08,46.26497809]
[1724710299177,6.3239,158.13,158.08,7.59067809]
[1724710299701,6.3236,158.14,158.09,6.3254]
[1724710300002,6.3236,158.14,158.1,6.325]
[1724710300705,6.3236,158.14,158.09,6.3254]
[1724710300911,6.3236,158.14,158.1,45.0]
[1724710301104,6.3223,158.17,158.1,46.26481203]
[1724710301404,12.30906613,158.16,158.1,45.0]
[1724710301604,6.3231,158.15,158.12,15.81]
[1724710301806,6.3231,158.15,158.11,6.3246]
[1724710301982,271.2027,158.21,158.11,1.26478784]
[1724710302307,12.30906613,158.17,158.11,15.8111]
[1724710302472,12.30906613,158.17,158.12,45.0]
[1724710302675,6.323,158.16,158.12,45.0]
[1724710303778,6.3223,158.17,158.13,6.3238]
[1724710303985,6.3223,158.17,158.12,45.0]
[1724710304289,6.3227,158.16,158.12,51.3242]
[1724710311509,15.8015,158.22,158.12,51.3242]
[1724710311806,6.3223,158.17,158.12,52.58880146]
[1724710312609,20.0,158.21,158.14,15.6913]
[1724710313580,6.3215,158.19,158.14,22.0145]
[1724710318393,6.3215,158.19,158.14,23.27895595]
[1724710319906,6.3215,158.19,158.14,22.0145]
[1724710321309,12.30906613,158.16,158.12,45.0]
[1724710321510,12.30906613,158.16,158.11,45.0]
[1724710321683,6.3232,158.15,158.1,37.7179]
[1724710321885,6.3247,158.11,158.1,6.2143]
[1724710322503,18.63346613,158.12,158.1,6.2143]
[1724710322705,15.8037,158.2,158.1,6.2143]
[1724710322901,12.30906613,158.16,158.1,22.0264]
[1724710323094,12.30906613,158.18,158.11,1.26464674]
[1724710323296,20.0,158.17,158.11,1.26464674]
[1724710323591,26.3226,158.17,158.12,6.3242]
[1724710325897,6.3228,158.16,158.12,6.3242]
[1724710329303,6.3228,158.16,158.11,51.3246]
[1724710330006,26.3223,158.17,158.11,45.0]
[1724710330206,6.3219,158.18,158.13,6.3237]
[1724710330822,6.3215,158.19,158.14,6.3232]
[1724710332703,51.77025423,158.2,158.15,46.26446066]
[1724710333010,51.77025423,158.2,158.16,12.7517]
[1724710333310,51.77025423,158.2,158.17,52.58647032]
[1724710334006,51.77025423,158.2,158.19,6.3215]
[1724710334428,51.77025423,158.2,158.18,22.126]
[1724710334631,51.77025423,158.2,158.18,23.39019197]
[1724710335333,51.77025423,158.2,158.18,15.8042]
[1724710336239,51.77025423,158.2,158.18,17.06839209]
[1724710337318,51.77025423,158.2,158.18,15.8042]
[1724710338014,51.77025423,158.2,158.18,17.06839228]
[1724710338838,51.77025423,158.2,158.19,46.26414035]
[1724710339742,51.77025423,158.2,158.16,6.4293]
[1724710339902,58.09145423,158.2,158.16,6.4293]
[1724710340102,58.09145423,158.2,158.17,45.0]
[1724710340306,82.53218612,158.2,158.16,6.4293]
[1724710340527,82.53218612,158.2,158.12,22.9304]
[1724710340528,6.3231,158.15,158.12,22.9304]
[1724710342013,6.3236,158.14,158.12,6.4293]
[1724710342331,30.76193189,158.16,158.09,22.1388]
[1724710343534,30.76193189,158.16,158.1,45.0]
[1724710343714,6.3239,158.13,158.1,45.0]
[1724710345628,6.3235,158.15,158.1,46.26480483]
[1724710345833,6.3227,158.16,158.11,6.3246]
[1724710346031,6.3226,158.17,158.12,52.58877071]
[1724710346334,6.3226,158.17,158.12,6.3241]
[1724710347016,6.3227,158.16,158.11,6.3246]
[1724710347220,18.62710548,158.16,158.12,45.0]
[1724710348022,6.3227,158.16,158.12,45.0]
[1724710348334,30.76710411,158.14,158.08,22.718]
[1724710349113,30.76710411,158.16,158.08,22.718]
[1724710349313,20.0,158.15,158.08,22.718]
[1724710349608,6.3235,158.14,158.09,6.3251]
[1724710349939,6.3226,158.17,158.12,6.3242]
[1724710350112,6.3231,158.15,158.1,51.3247]
[1724710356942,6.3231,158.15,158.1,52.58939744]
[1724710357651,6.3231,158.15,158.1,51.3247]
[1724710360142,6.3255,158.09,158.08,22.718]
[1724710360356,30.76710411,158.15,158.03,1.50663762]
[1724710360357,6.3265,158.07,158.04,21.292]
[1724710360661,30.76710411,158.11,158.04,21.292]
[1724710361246,6.3259,158.08,158.04,21.292]
[1724710361452,6.3255,158.09,158.04,27.6194]
[1724710362141,6.3255,158.09,158.05,45.0]
[1724710363269,6.3263,158.07,158.04,6.0695]
[1724710363455,6.3275,158.04,158.0,21.292]
[1724710363636,6.3271,158.06,158.0,27.621]
[1724710365045,6.3271,158.06,158.01,45.0]
[1724710366361,6.3271,158.06,158.01,51.3287]
[1724710367544,6.3271,158.06,158.01,6.3287]
[1724710368274,30.76710411,158.07,158.02,6.3282]
[1724710368572,30.76710411,158.09,158.02,6.3282]
[1724710368870,20.0,158.08,158.02,6.3282]
[1724710369437,20.0,158.08,158.01,15.8217]
[1724710369667,30.76710411,158.11,158.02,46.26533709]
[1724710369846,20.0,158.1,158.02,46.26533709]
[1724710370047,20.0,158.1,158.02,45.0]
[1724710370663,6.325,158.11,158.06,6.3263]
[1724710370866,6.3247,158.11,158.06,22.1423]
[1724710371060,6.3247,158.11,158.07,45.0]
[1724710371243,6.3243,158.12,158.07,51.3262]
[1724710372151,6.3247,158.11,158.07,45.0]
[1724710372745,6.3271,158.05,158.0,15.2225]
[1724710373059,37.09380411,158.06,158.0,21.5515]
[1724710374259,6.3273,158.05,158.0,21.5515]
[1724710374772,6.3273,158.05,158.01,45.0]
[1724710375472,30.76710411,158.06,158.01,45.0]
[1724710376348,6.3275,158.04,158.01,45.0]
[1724710376554,6.3275,158.04,158.0,45.0]
[1724710376884,6.3275,158.04,158.0,51.329]
[1724710377749,6.3271,158.05,158.0,51.329]
[1724710379368,30.76710411,158.06,158.0,45.0]
[1724710379565,30.76710411,158.06,157.99,51.3294]
[1724710379871,6.3275,158.04,157.99,51.3294]
[1724710380480,6.3279,158.03,157.99,51.3294]
[1724710384759,6.3275,158.04,157.99,51.3294]
[1724710387688,30.76710411,158.08,158.0,17.08778199]
[1724710387982,6.3263,158.07,158.02,6.3282]
[1724710388365,6.3267,158.06,158.03,45.0]
[1724710388984,6.3267,158.06,158.02,45.0]
[1724710389164,6.3272,158.05,158.02,45.0]
[1724710389365,6.3272,158.05,158.01,45.0]
[1724710390282,12.32426713,158.05,157.98,21.8727]
[1724710390475,12.32426713,158.03,157.98,21.8727]
[1724710390674,18.65216713,158.03,157.99,45.0]
[1724710393559,18.65176713,158.05,157.99,51.3293]
[1724710394887,18.65176713,158.05,158.0,1.26554704]
[1724710395266,18.65176713,158.05,157.99,51.3293]
[1724710395470,6.3275,158.04,157.99,51.3293]
[1724710400592,6.3275,158.04,158.0,6.329]
[1724710400799,6.3275,158.04,158.01,45.0]
[1724710404396,6.3271,158.05,158.01,51.3286]
[1724710404710,37.13671041,158.08,158.03,6.3276]
[1724710404998,6.3259,158.08,158.04,6.3274]
[1724710405187,6.3259,158.08,158.05,45.0]
[1724710405791,6.3259,158.08,158.04,45.0]
[1724710406505,6.3264,158.07,158.04,45.0]
[1724710411692,6.326,158.08,158.04,45.0]
[1724710418314,31.0865,158.12,158.05,7.34454522]
[1724710418315,6.3253,158.1,158.05,7.34454522]
[1724710418496,6.3253,158.1,158.06,45.0]
[1724710418799,6.3253,158.1,158.07,1.26503803]
[1724710420392,6.3253,158.1,158.06,51.3266]
[1724710422694,6.3256,158.09,158.06,45.0]
[1724710422895,18.64428435,158.08,158.06,45.0]
[1724710423098,18.64428435,158.08,158.04,15.818]
[1724710423417,18.64428435,158.08,158.05,45.0]
[1724710424696,18.64428435,158.08,158.04,15.818]
[1724710427919,12.31818435,158.08,158.04,22.1452]
[1724710428216,6.3256,158.09,158.05,46.26517658]
[1724710430025,6.3251,158.1,158.05,45.0]
[1724710431617,6.3251,158.1,158.06,6.3266]
[1724710431816,6.3251,158.1,158.07,45.0]
[1724710435034,6.3247,158.11,158.08,1.26502133]
[1724710435828,6.3244,158.12,158.07,51.3259]
[1724710436912,6.3244,158.12,158.08,6.3258]
[1724710437136,6.3239,158.13,158.09,45.0]
[1724710437335,6.3239,158.13,158.1,1.26482664]
[1724710437635,6.3239,158.13,158.09,45.0]
[1724710444413,12.31818435,158.12,158.09,45.0]
[1724710444712,6.3255,158.09,158.04,6.3274]
[1724710444908,12.31818435,158.08,158.04,6.3274]
[1724710446225,12.31818435,158.08,158.05,45.0]
[1724710446546,18.64438435,158.08,158.05,45.0]
[1724710446722,12.31818435,158.06,158.05,45.0]
[1724710447534,12.31818435,158.06,158.04,45.0]
[1724710448244,18.64488435,158.06,158.04,45.0]
[1724710448541,18.64488435,158.06,158.03,45.0]
[1724710448911,12.31818435,158.04,157.98,21.9066]
[1724710449130,12.31818435,158.02,157.98,21.9066]
[1724710450148,1.14272109,158.07,157.95,15.8274]
[1724710450149,12.31818435,158.0,157.95,15.8274]
[1724710450318,12.31818435,158.0,157.96,6.3306]
[1724710452021,12.31818435,158.0,157.97,45.0]
[1724710453040,18.64648435,158.02,157.97,51.3302]
[1724710456522,12.31818435,158.02,157.98,6.3297]
[1724710456825,18.64648435,158.02,157.99,45.0]
[1724710459118,6.3288,158.01,157.95,15.8274]
[1724710459340,6.3288,158.01,157.96,45.0]
[1724710459545,12.31818435,158.0,157.96,45.0]
[1724710460531,12.31818435,158.0,157.96,51.3306]
[1724710462725,6.3288,158.01,157.96,51.3306]
[1724710463255,6.3288,158.01,157.97,6.3302]
[1724710465444,6.3283,158.02,157.97,6.3302]
[1724710465632,18.64648435,158.02,157.98,45.0]
[1724710469333,15.8225,158.03,157.98,51.3298]
[1724710469334,22.1504,158.03,157.98,51.3298]
[1724710470033,6.3279,158.03,157.98,51.3298]
[1724710471257,6.3272,158.05,158.0,6.3287]
[1724710471439,16.3942,158.07,158.01,45.0]
[1724710471641,35.03878435,158.07,158.01,60.8213]
[1724710471950,18.64458435,158.07,158.01,17.08667854]
[1724710472167,18.64458435,158.07,158.02,46.2653587]
[1724710472662,18.64458435,158.07,158.03,6.3278]
[1724710473435,16.3942,158.11,158.04,1.2653568]
[1724710473436,6.3255,158.09,158.04,1.2653568]
[1724710473635,12.31818435,158.09,158.04,52.5927568]
[1724710473939,16.3942,158.11,158.06,15.8164]
[1724710474144,12.31818435,158.1,158.06,15.8164]
[1724710474444,12.31818435,158.1,158.07,45.0]
[1724710476858,12.31818435,158.1,158.08,1.26506243]
[1724710477038,12.31818435,158.1,158.07,45.0]
[1724710478060,6.325,158.11,158.07,45.0]
[1724710482453,16.1704,158.15,158.07,45.0]
[1724710482454,18.64338435,158.1,158.07,45.0]
[1724710484671,12.31818435,158.08,158.03,15.8193]
[1724710484971,12.31818435,158.05,158.0,6.514]
[1724710485469,12.31818435,158.05,158.01,6.3286]
[1724710486067,12.31818435,158.05,158.02,45.0]
[1724710487268,6.3267,158.06,158.02,45.0]
[1724710487844,12.31818435,158.07,158.03,6.3278]
[1724710488048,6.3268,158.06,158.02,67.1489]
[1724710488342,16.1704,158.09,158.02,67.1489]
[1724710488343,6.3255,158.09,158.04,6.3272]
[1724710488544,6.3255,158.09,158.05,45.0]
[1724710494566,18.64318435,158.11,158.05,51.3268]
[1724710494763,12.31818435,158.11,158.05,51.3268]
[1724710494961,6.3253,158.1,158.05,51.3268]
[1724710495340,6.3255,158.09,158.05,51.3268]
[1724710497379,6.3251,158.1,158.05,51.3268]
[1724710497758,15.3604,158.17,158.1,6.325]
[1724710497973,15.3604,158.17,158.11,1.26485913]
[1724710498163,6.3231,158.15,158.09,22.1378]
[1724710498477,6.3231,158.15,158.1,51.3249]
[1724710503087,51.77025423,158.2,158.11,6.3244]
[1724710503266,32.31818435,158.19,158.12,45.0]
[1724710503469,51.77025423,158.2,158.13,15.8091]
[1724710503676,51.77025423,158.2,158.14,45.0]
[1724710503985,6.3222,158.18,158.14,45.0]
[1724710504706,6.3223,158.17,158.14,45.0]
[1724710504865,12.31818435,158.15,158.08,6.3756]
[1724710505189,12.31818435,158.13,158.08,6.3756]
[1724710505358,12.31818435,158.11,158.08,6.3756]
[1724710505559,1.14272109,158.18,158.08,6.3756]
[1724710505754,12.31818435,158.13,158.08,7.6405839]
[1724710506382,6.3243,158.12,158.08,6.3756]
[1724710506570,6.3243,158.12,158.09,45.0]
[1724710508268,18.64208435,158.13,158.09,51.3254]
[1724710509398,18.64208435,158.13,158.09,45.0]
[1724710509690,6.3243,158.12,158.09,45.0]
[1724710516205,6.3254,158.1,158.05,6.327]
[1724710516496,18.64448435,158.07,158.04,6.0176]
[1724710516798,12.31818435,158.07,158.04,6.0176]
[1724710517010,18.64528435,158.05,158.01,6.3286]
[1724710517504,12.31818435,158.05,158.01,6.3286]
[1724710517800,6.3267,158.06,158.01,6.3286]
[1724710518170,6.3267,158.06,158.02,45.0]
[1724710518377,6.3267,158.06,158.01,6.3286]
[1724710519687,6.3267,158.06,158.02,45.0]
[1724710525405,12.31818435,158.07,158.02,45.0]
[1724710525583,12.31818435,158.07,158.03,1.26529817]
[1724710525789,12.31818435,158.07,158.03,45.0]
[1724710526305,6.3263,158.08,158.04,1.26527444]
[1724710526615,6.3263,158.08,158.03,51.3276]
[1724710526901,6.3263,158.08,158.04,1.26526501]
[1724710527487,6.3263,158.08,158.03,51.3276]
[1724710527692,6.3263,158.08,158.04,1.26525969]
[1724710530490,6.3263,158.07,158.04,1.26525969]
[1724710530700,6.3263,158.07,158.03,51.3276]
[1724710534910,6.326,158.08,158.03,51.3276]
[1724710549329,12.31818435,158.05,158.0,6.0176]
[1724710549631,12.31818435,158.01,157.96,6.1664]
[1724710549800,12.31818435,157.99,157.96,12.497]
[1724710550307,12.31818435,157.99,157.97,1.58465938]
[1724710550519,12.31818435,157.99,157.96,6.1664]
[1724710550702,12.31818435,157.99,157.97,1.58468409]
[1724710550900,12.31818435,157.99,157.96,6.1664]
[1724710553522,12.31818435,157.99,157.95,22.1583]
[1724710553722,12.31818435,157.97,157.86,6.0555]
[1724710553899,12.31818435,157.95,157.9,6.3331]
[1724710554101,12.31818435,157.95,157.91,6.3327]
[1724710554625,18.64968435,157.95,157.89,6.3335]
[1724710555815,18.64968435,157.95,157.9,45.0]
[1724710557217,12.31818435,157.95,157.91,6.3327]
[1724710557407,12.31818435,157.95,157.92,45.0]
[1724710560427,18.64928435,157.95,157.92,45.0]
[1724710560729,18.64928435,157.95,157.91,45.0]
[1724710562712,18.64878435,157.97,157.92,1.26631378]
[1724710563636,6.3307,157.96,157.91,51.3325]
[1724710564837,12.31818435,157.97,157.91,60.8309]
[1724710565043,20.0,157.98,157.92,1.2661236]
[1724710565342,12.31818435,157.99,157.93,17.09523813]
[1724710565514,12.31818435,158.0,157.94,45.0]
[1724710565839,18.64738435,158.0,157.95,6.331]
[1724710566016,18.64738435,158.0,157.96,45.0]
[1724710566824,6.3287,158.01,157.96,51.3306]
[1724710567012,6.3287,158.01,157.97,6.3303]
[1724710567208,18.64728435,158.0,157.96,45.0]
[1724710567943,12.31818435,158.0,157.96,51.3306]
[1724710568821,6.3282,158.03,157.96,45.0]
[1724710569029,6.3282,158.03,157.98,6.3299]
[1724710569326,6.3282,158.03,157.99,46.26576759]
[1724710569527,6.3282,158.03,157.99,45.0]
[1724710570341,32.0176,158.06,157.99,45.0]
[1724710570342,16.2,158.06,158.0,7.59486772]
[1724710570532,20.0,158.05,158.0,6.3291]
[1724710570936,26.3274,158.05,158.0,6.3291]
[1724710571244,18.64578435,158.04,157.99,51.3294]
[1724710571660,65.4727374,158.0,157.88,7.0624597]
[1724710571849,12.31818435,157.93,157.9,6.333]
[1724710572147,12.31818435,157.93,157.89,1.26635636]
[1724710572321,12.31818435,157.93,157.88,7.0624597]
[1724710572749,12.31818435,157.93,157.88,13.3959597]
[1724710573043,12.31818435,157.93,157.89,6.3334]
[1724710573421,15.8257,157.98,157.9,6.333]
[1724710573422,18.64928435,157.95,157.9,6.333]
[1724710574131,18.64928435,157.95,157.88,22.8964597]
[1724710574132,12.31818435,157.91,157.88,16.6437597]
[1724710574455,21.14272109,157.94,157.88,16.6437597]
[1724710574456,12.31818435,157.89,157.88,0.8097597]
[1724710574655,12.31818435,157.89,157.8,31.6856]
[1724710574656,12.31818435,157.89,157.8,6.2527]
[1724710574950,12.31818435,157.82,157.79,6.3375]
[1724710575328,12.31818435,157.82,157.79,4.8375]
[1724710575924,12.31818435,157.82,157.8,6.337]
[1724710576132,30.89377757,157.85,157.8,6.337]
[1724710576731,32.03649866,157.85,157.8,6.337]
[1724710577430,30.89377757,157.85,157.8,6.337]
[1724710577731,30.89377757,157.87,157.78,31.6896]
[1724710577941,30.89377757,157.87,157.83,6.3357]
[1724710578152,30.89377757,157.87,157.84,45.0]
[1724710578838,30.89377757,157.85,157.78,47.5337]
[1724710579040,30.89377757,157.85,157.79,45.0]
[1724710580640,30.89377757,157.85,157.8,6.337]
[1724710580955,30.89377757,157.85,157.81,45.0]
[1724710583167,30.89377757,157.87,157.83,6.3355]
[1724710583459,1.14272109,157.86,157.82,6.3363]
[1724710583760,30.89377757,157.85,157.81,60.8417]
[1724710584660,30.89377757,157.85,157.81,67.1784]
[1724710584863,16.2,157.92,157.81,60.8417]
[1724710585065,30.89377757,157.9,157.84,6.3354]
[1724710585364,37.22767757,157.88,157.83,6.3359]
[1724710585571,30.89377757,157.9,157.84,45.0]
[1724710585753,30.89377757,157.9,157.85,15.837]
[1724710585953,6.3335,157.89,157.85,15.837]
[1724710586161,30.89377757,157.9,157.85,15.837]
[1724710586162,37.22687757,157.9,157.85,22.1717]